lending/lending_fUSD_20241120
["ID","MTS","AMOUNT","RATE_DAILY","PERIOD"]
[342798516,1732143058796,-500.0,0.00055068,120]
[342798517,1732143058805,-1573.1,0.00055068,120]
[342798518,1732143058814,-500.0,0.00055068,120]
[342798519,1732143058823,-500.0,0.00055068,120]
[342798520,1732143058832,-500.0,0.00055068,120]
[342798521,1732143058842,-500.0,0.00055068,120]
[342798522,1732143058851,-1344.45,0.00055068,120]
[342798523,1732143058861,-500.0,0.00055068,120]
[342798524,1732143058875,-500.0,0.00055068,120]
[342798525,1732143058885,-695.34,0.00055068,120]
[342798526,1732143058895,-5030.76,0.00055068,120]
[342798527,1732143058904,-993.23,0.00055068,120]
[342798528,1732143058915,-530.39,0.00055068,120]
[342798529,1732143058924,-1007.71,0.00055068,120]
[342798530,1732143058934,-500.0,0.00055068,120]
[342798531,1732143058943,-845.57,0.00055068,120]
[342798532,1732143058956,-1508.05,0.00055068,120]
[342798533,1732143058966,-502.50237501,0.00055068,120]
[342798534,1732143058976,-500.0,0.00055068,120]
[342798535,1732143058986,-1000.0,0.00055068,30]
[342798536,1732143058996,-1949.27,0.00055068,120]
[342798537,1732143059007,-635.4,0.00055068,120]
[342798538,1732143059016,-3671.8,0.00055068,120]
[342798539,1732143059027,-500.0,0.00055068,120]
[342798540,1732143059037,-873.15,0.00055068,120]
[342798541,1732143059047,-500.0,0.00055068,120]
[342798542,1732143059057,-1275.78,0.00055068,120]
[342798543,1732143059067,-500.0,0.00055068,120]
[342798544,1732143059078,-500.0,0.00055068,120]
[342798545,1732143059087,-1300.6,0.00055068,120]
[342798546,1732143059097,-500.0,0.00055068,120]
[342798547,1732143059107,-500.0,0.00055068,120]
[342798548,1732143059117,-500.0,0.00055068,120]
[342798549,1732143059127,-500.0,0.00055068,120]
[342798550,1732143059137,-1078.43,0.00055068,120]
[342798551,1732143059147,-500.0,0.00055068,120]
[342798552,1732143059157,-1015.57,0.00055068,120]
[342798553,1732143059166,-729.83,0.00055068,120]
[342798554,1732143059176,-500.0,0.00055068,120]
[342798555,1732143059186,-562.04,0.00055068,120]
[342798556,1732143059196,-2596.1,0.00055068,120]
[342798557,1732143059206,-500.0,0.00055068,120]
[342798558,1732143059215,-500.0,0.00055068,120]
[342798559,1732143059225,-2222.66,0.00055068,120]
[342798560,1732143059235,-1080.64,0.00055068,120]
[342798561,1732143059244,-852.14,0.00055068,120]
[342798562,1732143059253,-569.32,0.00055068,120]
[342798563,1732143059263,-526.90833577,0.00055068,120]
[342798564,1732143059274,-509.24,0.00055068,120]
[342798565,1732143059285,-500.0,0.00055068,120]
[342798566,1732143059294,-700.0,0.00055068,120]
[342798567,1732143059303,-928.5,0.00055068,120]
[342798568,1732143059313,-500.0,0.00055068,120]
[342798569,1732143059322,-213.68649032,0.00055068,120]
[342798570,1732143059332,-500.0,0.00055068,120]
[342798571,1732143059341,-500.0,0.00055068,120]
[342798572,1732143059350,-500.0,0.00055068,120]
[342798573,1732143059360,-500.0,0.00055068,120]
[342798574,1732143059370,-1129.79,0.00055068,120]
[342798575,1732143059379,-1806.6,0.00055068,120]
[342798576,1732143059389,-500.0,0.00055068,120]
[342798577,1732143059400,-500.0,0.00055068,120]
[342798578,1732143059409,-500.0,0.00055068,120]
[342798579,1732143059418,-2425.19,0.00055068,120]
[342798580,1732143059428,-500.0,0.00055068,120]
[342798581,1732143059438,-625.0,0.00055068,120]
[342798582,1732143059447,-500.0,0.00055068,120]
[342798583,1732143059457,-500.0,0.00055068,120]
[342798584,1732143059466,-500.0,0.00055068,120]
[342798585,1732143059475,-500.0,0.00055068,120]
[342798586,1732143059484,-1018.93,0.00055068,120]
[342798587,1732143059494,-500.0,0.00055068,120]
[342798588,1732143059504,-2073.72,0.00055068,120]
[342798589,1732143059513,-500.0,0.00055068,120]
[342798590,1732143059523,-500.0,0.00055068,120]
[342798591,1732143059532,-500.0,0.00055068,120]
[342798592,1732143059543,-1011.93,0.00055068,120]
[342798593,1732143059552,-500.0,0.00055068,120]
[342798594,1732143059562,-1257.41,0.00055068,120]
[342798595,1732143059571,-500.0,0.00055068,120]
[342798596,1732143059581,-1328.54,0.00055068,120]
[342798597,1732143059591,-893.2,0.00055068,120]
[342798598,1732143059601,-878.56,0.00055068,120]
[342798599,1732143059611,-1954.12,0.00055068,120]
[342798600,1732143059620,-500.0,0.00055068,120]
[342798601,1732143059630,-5394.68,0.00055068,120]
[342798602,1732143059639,-1107.33,0.00055068,120]
[342798603,1732143059650,-500.0,0.00055068,120]
[342798604,1732143059659,-500.0,0.00055068,120]
[342798605,1732143059669,-500.0,0.00055068,120]
[342798606,1732143059678,-500.0,0.00055068,120]
[342798607,1732143059688,-501.52904712,0.00055068,120]
[342798608,1732143059698,-500.0,0.00055068,120]
[342798609,1732143059708,-500.0,0.00055068,60]
[342798610,1732143059718,-500.0,0.00055068,120]
[342798611,1732143059727,-500.0,0.00055068,120]
[342798612,1732143059736,-500.0,0.00055068,120]
[342798613,1732143059747,-543.1,0.00055068,120]
[342798614,1732143059758,-500.0,0.00055068,120]
[342798615,1732143059767,-500.0,0.00055068,120]
[342798616,1732143059776,-500.0,0.00055068,120]
[342798617,1732143059786,-965.73,0.00055068,120]
[342798618,1732143059796,-500.0,0.00055068,120]
[342798619,1732143059806,-500.0,0.00055068,120]
[342798620,1732143059816,-500.0,0.00055068,120]
[342798621,1732143059825,-500.0,0.00055068,120]
[342798622,1732143059835,-594.46,0.00055068,120]
[342798623,1732143059844,-500.0,0.00055068,120]
[342798624,1732143059854,-500.0,0.00055068,120]
[342798625,1732143059863,-500.0,0.00055068,120]
[342798626,1732143059877,-500.0,0.00055068,120]
[342798627,1732143059886,-402.49746354,0.00055068,120]
[342798628,1732143059897,-1317.76,0.00055068,120]
[342798629,1732143059906,-500.0,0.00055068,120]
[342798630,1732143059918,-1510.86,0.00055068,120]
[342798631,1732143059928,-500.0,0.00055068,120]
[342798632,1732143059938,-1617.12,0.00055068,120]
[342798633,1732143059949,-543.44577468,0.00055068,120]
[342798634,1732143059960,-657.08,0.00055068,120]
[342798635,1732143059969,-523.09,0.00055068,120]
[342798636,1732143059979,-628.07,0.00055068,120]
[342798637,1732143059988,-4865.56,0.00055068,120]
[342798638,1732143059999,-500.0,0.00055068,120]
[342798639,1732143060008,-500.0,0.00055068,120]
[342798640,1732143060018,-500.0,0.00055068,120]
[342798641,1732143060028,-549.48904179,0.00055068,120]
[342798642,1732143060038,-500.0,0.00055068,120]
[342798643,1732143060049,-500.0,0.00055068,120]
[342798644,1732143060060,-2529.98,0.00055068,120]
[342798645,1732143060070,-500.0,0.00055068,120]
[342798646,1732143060080,-624.76,0.00055068,120]
[342798647,1732143060089,-635.24,0.00055068,120]
[342798648,1732143060099,-596.8909189,0.00055068,120]
[342798649,1732143060108,-750.97,0.00055068,120]
[342798650,1732143060118,-500.0,0.00055068,120]
[342798651,1732143060127,-500.0,0.00055068,120]
[342798652,1732143060137,-1761.11,0.00055068,120]
[342798653,1732143060147,-500.0,0.00055068,120]
[342798654,1732143060157,-500.0,0.00055068,120]
[342798655,1732143060167,-46265.17,0.00055068,120]
[342798656,1732143060176,-500.0,0.00055068,120]
[342798657,1732143060186,-644.52,0.00055068,120]
[342798658,1732143060196,-880.93,0.00055068,120]
[342798659,1732143060207,-500.0,0.00055068,120]
[342798660,1732143060216,-500.0,0.00055068,120]
[342798661,1732143060226,-4390.12,0.00055068,120]
[342798662,1732143060237,-500.0,0.00055068,120]
[342798663,1732143060246,-500.0,0.00055068,120]
[342798664,1732143060257,-3641.91,0.00055068,120]
[342798665,1732143060266,-500.0,0.00055068,120]
[342798666,1732143060276,-500.0,0.00055068,120]
[342798667,1732143060286,-500.0,0.00055068,120]
[342798668,1732143060295,-500.0,0.00055068,120]
[342798669,1732143060304,-2046.77,0.00055068,120]
[342798670,1732143060314,-500.0,0.00055068,120]
[342798671,1732143060324,-500.0,0.00055068,120]
[342798672,1732143060333,-500.0,0.00055068,120]
[342798673,1732143060343,-500.0,0.00055068,120]
[342798674,1732143060352,-500.0,0.00055068,120]
[342798675,1732143060362,-519.31,0.00055068,120]
[342798676,1732143060372,-1582.94,0.00055068,120]
[342798677,1732143060381,-1566.08,0.00055068,120]
[342798678,1732143060391,-500.0,0.00055068,120]
[342798679,1732143060401,-1540.18,0.00055068,120]
[342798680,1732143060410,-500.0,0.00055068,120]
[342798681,1732143060419,-500.0,0.00055068,120]
[342798682,1732143060429,-500.0,0.00055068,120]
[342798683,1732143060438,-500.0,0.00055068,120]
[342798684,1732143060447,-200.0,0.00055068,10]
[342798685,1732143060457,-32182.96,0.00055068,120]
[342798686,1732143060466,-500.0,0.00055068,120]
[342798687,1732143060475,-500.0,0.00055068,120]
[342798688,1732143060484,-2395.44,0.00055068,120]
[342798689,1732143060494,-500.0,0.00055068,120]
[342798690,1732143060504,-500.0,0.00055068,120]
[342798691,1732143060513,-500.0,0.00055068,120]
[342798692,1732143060523,-500.0,0.00055068,120]
[342798693,1732143060533,-500.0,0.00055068,120]
[342798694,1732143060543,-500.0,0.00055068,120]
[342798695,1732143060553,-500.0,0.00055068,120]
[342798696,1732143060563,-774.88,0.00055068,120]
[342798697,1732143060573,-500.0,0.00055068,120]
[342798698,1732143060582,-500.0,0.00055068,120]
[342798699,1732143060591,-500.0,0.00055068,120]
[342798700,1732143060601,-500.0,0.00055068,120]
[342798701,1732143060611,-500.0,0.00055068,120]
[342798702,1732143060620,-3018.97,0.00055068,120]
[342798703,1732143060629,-287.4670562,0.00055068,120]
[342798704,1732143060638,-642.63381506,0.00055068,120]
[342798705,1732143060649,-500.0,0.00055068,120]
[342798706,1732143060659,-1221.56,0.00055068,120]
[342798707,1732143060668,-500.0,0.00055068,120]
[342798708,1732143060677,-949.33,0.00055068,120]
[342798709,1732143060686,-500.0,0.00055068,120]
[342798710,1732143060696,-500.0,0.00055068,120]
[342798711,1732143060707,-500.0,0.00055068,120]
[342798712,1732143060718,-500.0,0.00055068,120]
[342798713,1732143060728,-512.47,0.00055068,120]
[342798714,1732143060738,-500.0,0.00055068,120]
[342798715,1732143060748,-500.0,0.00055068,120]
[342798716,1732143060758,-975.73,0.00055068,120]
[342798717,1732143061092,-500.0,0.00055068,120]
[342798718,1732143061109,-1680.87,0.00055068,120]
[342798719,1732143061119,-500.0,0.00055068,120]
[342798720,1732143061129,-500.0,0.00055068,120]
[342798721,1732143061139,-2068.97,0.00055068,120]
[342798722,1732143061150,-509.92,0.00055068,120]
[342798723,1732143061160,-500.0,0.00055068,120]
[342798724,1732143061170,-500.0,0.00055068,120]
[342798725,1732143061179,-2386.08,0.00055068,120]
[342798726,1732143061189,-850.0,0.00055068,120]
[342798727,1732143061199,-2587.78,0.00055068,120]
[342798728,1732143061208,-500.0,0.00055068,120]
[342798729,1732143061218,-1481.97,0.00055068,120]
[342798730,1732143061227,-427.95268583,0.00055068,120]
[342798731,1732143061237,-500.0,0.00055068,120]
[342798732,1732143061246,-1478.74,0.00055068,120]
[342798733,1732143061255,-500.0,0.00055068,120]
[342798734,1732143061264,-500.0,0.00055068,120]
[342798735,1732143061274,-500.0,0.00055068,120]
[342798736,1732143061284,-580.13,0.00055068,120]
[342798737,1732143061294,-500.0,0.00055068,120]
[342798738,1732143061303,-500.0,0.00055068,120]
[342798739,1732143061313,-500.0,0.00055068,120]
[342798740,1732143061322,-1753.89,0.00055068,120]
[342798741,1732143061332,-500.0,0.00055068,120]
[342798742,1732143061342,-443.29892899,0.00055068,120]
[342798743,1732143061351,-816.51,0.00055068,120]
[342798744,1732143061360,-500.0,0.00055068,120]
[342798745,1732143061370,-2245.37,0.00055068,120]
[342798746,1732143061379,-10880.09,0.00055068,120]
[342798747,1732143061389,-500.0,0.00055068,120]
[342798748,1732143061400,-500.0,0.00055068,120]
[342798749,1732143061410,-500.0,0.00055068,120]
[342798750,1732143061419,-500.0,0.00055068,120]
[342798751,1732143061429,-3622.31,0.00055068,120]
[342798752,1732143061439,-500.0,0.00055068,120]
[342798753,1732143061448,-500.0,0.00055068,120]
[342798754,1732143061458,-502.6,0.00055068,120]
[342798755,1732143061467,-500.0,0.00055068,120]
[342798756,1732143061477,-500.0,0.00055068,120]
[342798757,1732143061486,-500.0,0.00055068,120]
[342798758,1732143061496,-1317.84,0.00055068,120]
[342798759,1732143061505,-1518.89,0.00055068,90]
[342798760,1732143061514,-1643.31,0.00055068,120]
[342798761,1732143061523,-500.0,0.00055068,120]
[342798762,1732143061532,-500.0,0.00055068,120]
[342798763,1732143061541,-296.87174165,0.00055068,120]
[342798764,1732143061550,-1298.63,0.00055068,120]
[342798765,1732143061559,-500.0,0.00055068,120]
[342798766,1732143061568,-943.47,0.00055068,120]
[342798767,1732143061578,-500.0,0.00055068,120]
[342798768,1732143061588,-1649.32,0.00055068,120]
[342798769,1732143061599,-500.0,0.00055068,120]
[342798770,1732143061609,-550.87,0.00055068,120]
[342798771,1732143061619,-500.0,0.00055068,120]
[342798772,1732143061630,-5640.48,0.00055068,120]
[342798773,1732143061639,-2158.9,0.00055068,120]
[342798774,1732143061651,-500.0,0.00055068,120]
[342798775,1732143061660,-500.0,0.00055068,120]
[342798776,1732143061670,-1165.26,0.00055068,120]
[342798777,1732143061679,-514.74554928,0.00055068,120]
[342798778,1732143061689,-500.0,0.00055068,120]
[342798779,1732143061700,-1244.51,0.00055068,120]
[342798780,1732143061710,-500.0,0.00055068,120]
[342798781,1732143061720,-500.0,0.00055068,120]
[342798782,1732143061731,-546.35483875,0.00055068,120]
[342798783,1732143061742,-250.0,0.00055068,120]
[342798784,1732143061752,-500.0,0.00055068,120]
[342798785,1732143061761,-9870.91,0.00055068,120]
[342798786,1732143061772,-500.0,0.00055068,120]
[342798787,1732143061783,-1110.14,0.00055068,120]
[342798788,1732143061793,-986.78,0.00055068,120]
[342798789,1732143061802,-567.02,0.00055068,120]
[342798790,1732143061812,-500.0,0.00055068,120]
[342798791,1732143061822,-167.84928337,0.00055068,120]
[342798792,1732143061832,-500.0,0.00055068,120]
[342798793,1732143061841,-500.0,0.00055068,120]
[342798794,1732143061851,-500.0,0.00055068,120]
[342798795,1732143061860,-651.9,0.00055068,120]
[342798796,1732143061873,-500.0,0.00055068,120]
[342798797,1732143061883,-500.0,0.00055068,120]
[342798798,1732143061893,-3368.96,0.00055068,120]
[342798799,1732143061902,-500.0,0.00055068,120]
[342798800,1732143061913,-6243.58,0.00055068,120]
[342798801,1732143061922,-500.0,0.00055068,120]
[342798802,1732143061931,-1221.81,0.00055068,120]
[342798803,1732143061943,-1021.75,0.00055068,120]
[342798804,1732143061960,-1378.96,0.00055068,120]
[342798805,1732143061979,-500.0,0.00055068,120]
[342798806,1732143061994,-500.0,0.00055068,120]
[342798807,1732143062004,-1402.48,0.00055068,120]
[342798808,1732143062013,-500.0,0.00055068,120]
[342798809,1732143062023,-2324.89,0.00055068,120]
[342798810,1732143062032,-1098.99,0.00055068,7]
[342798811,1732143062041,-500.0,0.00055068,120]
[342798812,1732143062051,-500.0,0.00055068,120]
[342798813,1732143062060,-3357.52,0.00055068,120]
[342798814,1732143062069,-500.0,0.00055068,120]
[342798815,1732143062079,-535.23551573,0.00055068,120]
[342798816,1732143062088,-1503.83,0.00055068,120]
[342798817,1732143062097,-631.52,0.00055068,120]
[342798818,1732143062107,-500.0,0.00055068,120]
[342798819,1732143062116,-500.0,0.00055068,120]
[342798820,1732143062126,-610.46,0.00055068,120]
[342798821,1732143062136,-4485.14,0.00055068,120]
[342798822,1732143062147,-500.0,0.00055068,120]
[342798823,1732143062159,-676.3,0.00055068,120]
[342798824,1732143062169,-500.0,0.00055068,120]
[342798825,1732143062178,-1449.22,0.00055068,120]
[342798826,1732143062188,-802.14,0.00055068,120]
[342798827,1732143062197,-1005.77,0.00055068,120]
[342798828,1732143062207,-500.0,0.00055068,120]
[342798829,1732143062216,-62267.29,0.00055068,5]
[342798830,1732143062226,-500.0,0.00055068,120]
[342798831,1732143062235,-1000.0,0.00055068,120]
[342798832,1732143062245,-500.0,0.00055068,120]
[342798833,1732143062254,-500.0,0.00055068,120]
[342798834,1732143062264,-500.0,0.00055068,120]
[342798835,1732143062273,-500.0,0.00055068,120]
[342798836,1732143062282,-1200.11,0.00055068,120]
[342798837,1732143062291,-500.0,0.00055068,120]
[342798838,1732143062300,-4633.73,0.00055068,120]
[342798839,1732143062310,-1462.06,0.00055068,120]
[342798840,1732143062320,-473.77216742,0.00055068,120]
[342798841,1732143062329,-1071.61,0.00055068,120]
[342798842,1732143062338,-1246.53,0.00055068,120]
[342798843,1732143062347,-500.0,0.00055068,120]
[342798844,1732143062356,-500.0,0.00055068,120]
[342798845,1732143062366,-665.76,0.00055068,120]
[342798846,1732143062375,-500.0,0.00055068,120]
[342798847,1732143062384,-1619.4,0.00055068,120]
[342798848,1732143062393,-534.16,0.00055068,120]
[342798849,1732143062404,-4155.63,0.00055068,120]
[342798850,1732143062413,-500.0,0.00055068,120]
[342798851,1732143062423,-500.0,0.00055068,120]
[342798852,1732143062432,-500.0,0.00055068,120]
[342798853,1732143062441,-716.03,0.00055068,120]
[342798854,1732143062450,-710.7,0.00055068,120]
[342798855,1732143062459,-1328.15,0.00055068,120]
[342798856,1732143062469,-3842.23,0.00055068,120]
[342798857,1732143062478,-1770.4,0.00055068,120]
[342798858,1732143062488,-1828.16,0.00055068,120]
[342798859,1732143062497,-734.2,0.00055068,120]
[342798860,1732143062506,-500.0,0.00055068,120]
[342798861,1732143062515,-500.0,0.00055068,120]
[342798862,1732143062524,-4113.57,0.00055068,120]
[342798863,1732143062534,-500.0,0.00055068,120]
[342798864,1732143062543,-3361.09,0.00055068,120]
[342798865,1732143062552,-2336.41,0.00055068,120]
[342798866,1732143062561,-914.26,0.00055068,120]
[342798867,1732143062571,-1199.34,0.00055068,120]
[342798868,1732143062580,-2227.59,0.00055068,120]
[342798869,1732143062589,-1225.66,0.00055068,120]
[342798870,1732143062599,-818.4,0.00055068,120]
[342798871,1732143062608,-500.0,0.00055068,120]
[342798872,1732143062617,-500.0,0.00055068,120]
[342798873,1732143062626,-945.67,0.00055068,120]
[342798874,1732143062635,-4656.57,0.00055068,120]
[342798875,1732143062646,-500.0,0.00055068,120]
[342798876,1732143062655,-656.2,0.00055068,120]
[342798877,1732143062665,-1601.15,0.00055068,120]
[342798878,1732143062674,-2590.51,0.00055068,120]
[342798879,1732143062683,-500.0,0.00055068,120]
[342798880,1732143062692,-500.0,0.00055068,120]
[342798881,1732143062702,-609.85,0.00055068,120]
[342798882,1732143062711,-500.0,0.00055068,120]
[342798883,1732143062720,-1087.48,0.00055068,120]
[342798884,1732143062729,-500.0,0.00055068,120]
[342798885,1732143062738,-617.4,0.00055068,120]
[342798886,1732143062747,-500.0,0.00055068,120]
[342798887,1732143062756,-530.21,0.00055068,120]
[342798888,1732143062766,-1021.22,0.00055068,120]
[342798889,1732143062777,-500.0,0.00055068,120]
[342798890,1732143062786,-507.25823141,0.00055068,120]
[342798891,1732143062795,-4078.12,0.00055068,120]
[342798892,1732143062804,-500.0,0.00055068,120]
[342798893,1732143062814,-1271.08,0.00055068,120]
[342798894,1732143062823,-500.0,0.00055068,120]
[342798895,1732143062832,-630.13,0.00055068,120]
[342798896,1732143062841,-500.0,0.00055068,120]
[342798897,1732143062851,-1053.42,0.00055068,120]
[342798898,1732143062860,-10737.37,0.00055068,21]
[342798899,1732143062869,-3054.48,0.00055068,120]
[342798900,1732143062882,-868.75,0.00055068,120]
[342798901,1732143062891,-772.0,0.00055068,120]
[342798902,1732143062903,-1615.7,0.00055068,120]
[342798903,1732143062912,-790.82,0.00055068,120]
[342798904,1732143062923,-500.0,0.00055068,120]
[342798905,1732143062933,-500.0,0.00055068,120]
[342798906,1732143062942,-500.0,0.00055068,120]
[342798907,1732143062955,-500.0,0.00055068,120]
[342798908,1732143062965,-500.0,0.00055068,120]
[342798909,1732143062975,-500.0,0.00055068,120]
[342798910,1732143062985,-500.0,0.00055068,120]
[342798911,1732143062995,-500.0,0.00055068,120]
[342798912,1732143063004,-500.0,0.00055068,120]
[342798913,1732143063014,-500.0,0.00055068,120]
[342798914,1732143063023,-2780.77,0.00055068,120]
[342798915,1732143063033,-500.0,0.00055068,120]
[342798916,1732143063043,-3170.06,0.00055068,120]
[342798917,1732143063053,-530.51,0.00055068,120]
[342798918,1732143063063,-500.0,0.00055068,120]
[342798919,1732143063072,-814.28,0.00055068,120]
[342798920,1732143063081,-500.0,0.00055068,120]
[342798921,1732143063091,-500.0,0.00055068,120]
[342798922,1732143063100,-500.0,0.00055068,120]
[342798923,1732143063110,-500.0,0.00055068,120]
[342798924,1732143063120,-500.0,0.00055068,120]
[342798925,1732143063130,-4610.65,0.00055068,120]
[342798926,1732143063140,-1053.94,0.00055068,120]
[342798927,1732143063151,-832.21,0.00055068,120]
[342798928,1732143063161,-500.0,0.00055068,120]
[342798929,1732143063171,-559.12,0.00055068,120]
[342798930,1732143063180,-501.50510308,0.00055068,120]
[342798931,1732143063190,-500.0,0.00055068,120]
[342798932,1732143063199,-962.23,0.00055068,120]
[342798933,1732143063208,-500.0,0.00055068,120]
[342798934,1732143063218,-630.95,0.00055068,120]
[342798935,1732143063227,-500.0,0.00055068,120]
[342798936,1732143063237,-7093.52,0.00055068,120]
[342798937,1732143063246,-1497.99,0.00055068,120]
[342798938,1732143063256,-500.0,0.00055068,120]
[342798939,1732143063266,-3030.53,0.00055068,120]
[342798940,1732143063276,-500.0,0.00055068,120]
[342798941,1732143063286,-4996.62,0.00055068,120]
[342798942,1732143063296,-2002.76,0.00055068,120]
[342798943,1732143063307,-1038.47,0.00055068,120]
[342798944,1732143063316,-500.0,0.00055068,120]
[342798945,1732143063325,-3755.03,0.00055068,120]
[342798946,1732143063334,-500.0,0.00055068,120]
[342798947,1732143063344,-500.0,0.00055068,120]
[342798948,1732143063353,-500.0,0.00055068,120]
[342798949,1732143063362,-500.33,0.00055068,120]
[342798950,1732143063372,-500.0,0.00055068,120]
[342798951,1732143063381,-619.43,0.00055068,120]
[342798952,1732143063391,-6717.87,0.00055068,120]
[342798953,1732143063404,-1395.84,0.00055068,120]
[342798954,1732143063416,-4210.05,0.00055068,120]
[342798955,1732143063429,-500.0,0.00055068,120]
[342798956,1732143063442,-4619.32,0.00055068,120]
[342798957,1732143063451,-2125.56,0.00055068,120]
[342798958,1732143063460,-500.0,0.00055068,120]
[342798959,1732143063557,-500.0,0.00055068,120]
[342798960,1732143063567,-1522.48,0.00055068,120]
[342798961,1732143063577,-591.3708309,0.00055068,120]
[342798962,1732143063586,-500.0,0.00055068,120]
[342798963,1732143063596,-2913.49,0.00055068,120]
[342798964,1732143063605,-500.0,0.00055068,120]
[342798965,1732143063615,-500.0,0.00055068,120]
[342798966,1732143063624,-500.0,0.00055068,120]
[342798967,1732143063633,-6408.58,0.00055068,60]
[342798968,1732143063643,-8536.13,0.00055068,120]
[342798969,1732143063653,-500.0,0.00055068,120]
[342798970,1732143063662,-500.0,0.00055068,120]
[342798971,1732143063671,-931.52,0.00055068,120]
[342798972,1732143063680,-5185.83,0.00055068,120]
[342798973,1732143063690,-500.0,0.00055068,120]
[342798974,1732143063699,-873.24,0.00055068,120]
[342798975,1732143063708,-500.0,0.00055068,120]
[342798976,1732143063718,-500.0,0.00055068,120]
[342798977,1732143063727,-1838.8,0.00055068,120]
[342798978,1732143063737,-1525.45,0.00055068,120]
[342798979,1732143063746,-500.0,0.00055068,120]
[342798980,1732143063756,-1373.0,0.00055068,120]
[342798981,1732143063765,-1659.86,0.00055068,120]
[342798982,1732143063775,-500.0,0.00055068,120]
[342798983,1732143063785,-500.0,0.00055068,120]
[342798984,1732143063795,-5907.77,0.00055068,120]
[342798985,1732143063804,-500.0,0.00055068,120]
[342798986,1732143063814,-647.02,0.00055068,120]
[342798987,1732143063823,-1210.69,0.00055068,120]
[342798988,1732143063833,-500.0,0.00055068,120]
[342798989,1732143063843,-500.0,0.00055068,120]
[342798990,1732143063853,-500.0,0.00055068,120]
[342798991,1732143063863,-526.64,0.00055068,120]
[342798992,1732143063878,-12504.89,0.00055068,120]
[342798993,1732143063888,-2076.98,0.00055068,120]
[342798994,1732143063900,-1181.36,0.00055068,120]
[342798995,1732143063909,-677.21,0.00055068,120]
[342798996,1732143063922,-2434.04,0.00055068,120]
[342798997,1732143063932,-1109.03,0.00055068,120]
[342798998,1732143063942,-500.0,0.00055068,120]
[342798999,1732143063954,-500.0,0.00055068,120]
[342799000,1732143063967,-1099.32,0.00055068,120]
[342799001,1732143063976,-4681.73,0.00055068,120]
[342799002,1732143063986,-651.95,0.00055068,120]
[342799003,1732143063996,-1502.22,0.00055068,120]
[342799004,1732143064006,-500.0,0.00055068,120]
[342799005,1732143064015,-757.95,0.00055068,120]
[342799006,1732143064025,-500.0,0.00055068,120]
[342799007,1732143064036,-986.66,0.00055068,120]
[342799008,1732143064046,-500.0,0.00055068,120]
[342799009,1732143064056,-500.0,0.00055068,30]
[342799010,1732143064066,-880.48,0.00055068,120]
[342799011,1732143064076,-500.0,0.00055068,120]
[342799012,1732143064086,-502.1202966,0.00055068,120]
[342799013,1732143064096,-1166.87,0.00055068,120]
[342799014,1732143064106,-491.0666458,0.00055068,120]
[342799015,1732143064116,-500.0,0.00055068,120]